[Event "SELL Games"]
[Site "Tartu, Estonia"]
[Date "2023.05.20"]
[Round "7.7"]
[White "Maciuityte, Greta"]
[Black "Vanagaite, Giedre"]
[Result "1/2-1/2"]
[TimeControl "15min + 10sec per move each"]
[BlackTitle "WFM"]
[WhiteFideId "12806765"]
[BlackFideId "12800546"]
[WhiteElo "1715"]
[BlackElo "1995"]

1. e4 {[%clk 00:15:17]} {[%emt 00:00:02]} c5 {[%clk 00:15:18]} {[%emt
00:00:03]} 2. d4 {[%clk 00:15:26]} {[%emt 00:00:01]} cxd4 {[%clk 00:15:20]}
{[%emt 00:00:08]} 3. c3 {[%clk 00:15:34]} {[%emt 00:00:01]} d3 {[%clk
00:15:22]} {[%emt 00:00:08]} 4. c4 {[%clk 00:15:43]} {[%emt 00:00:02]} Nf6
{[%clk 00:14:53]} {[%emt 00:00:39]} 5. Bxd3 {[%clk 00:15:50]} {[%emt 00:00:02]}
Nc6 {[%clk 00:15:00]} {[%emt 00:00:03]} 6. Nf3 {[%clk 00:15:57]} {[%emt
00:00:03]} e6 {[%clk 00:14:44]} {[%emt 00:00:26]} 7. Nc3 {[%clk 00:16:03]}
{[%emt 00:00:04]} a6 {[%clk 00:13:29]} {[%emt 00:01:25]} 8. O-O {[%clk
00:16:08]} {[%emt 00:00:05]} Qc7 {[%clk 00:13:36]} {[%emt 00:00:03]} 9. Bg5
{[%clk 00:16:01]} {[%emt 00:00:17]} Be7 {[%clk 00:13:40]} {[%emt 00:00:06]} 10.
Rc1 {[%clk 00:16:08]} {[%emt 00:00:03]} Ne5 {[%clk 00:13:28]} {[%emt 00:00:23]}
11. Nxe5 {[%clk 00:15:59]} {[%emt 00:00:19]} Qxe5 {[%clk 00:13:37]} {[%emt
00:00:01]} 12. f4 {[%clk 00:15:59]} {[%emt 00:00:10]} Qd4+ {[%clk 00:10:33]}
{[%emt 00:03:14]} 13. Kh1 {[%clk 00:16:08]} {[%emt 00:00:01]} d6 {[%clk
00:10:34]} {[%emt 00:00:09]} 14. Qe2 {[%clk 00:15:11]} {[%emt 00:01:06]} h5
{[%clk 00:06:20]} {[%emt 00:04:23]} 15. h3 {[%clk 00:15:00]} {[%emt 00:00:21]}
h4 {[%clk 00:05:42]} {[%emt 00:00:49]} 16. Qf3 {[%clk 00:13:57]} {[%emt
00:01:12]} Nh5 {[%clk 00:05:26]} {[%emt 00:00:27]} 17. Ne2 {[%clk 00:12:09]}
{[%emt 00:01:58]} Qxb2 {[%clk 00:04:11]} {[%emt 00:01:25]} 18. Rc2 {[%clk
00:12:08]} {[%emt 00:00:11]} Qa3 {[%clk 00:04:17]} {[%emt 00:00:04]} 19. c5
{[%clk 00:11:46]} {[%emt 00:00:32]} dxc5 {[%clk 00:03:53]} {[%emt 00:00:35]} 20.
Bxe7 {[%clk 00:11:09]} {[%emt 00:00:47]} Kxe7 {[%clk 00:04:01]} {[%emt
00:00:01]} 21. f5 {[%clk 00:10:45]} {[%emt 00:00:35]} e5 {[%clk 00:03:16]}
{[%emt 00:00:55]} 22. Rb1 {[%clk 00:10:36]} {[%emt 00:00:19]} Rb8 {[%clk
00:01:05]} {[%emt 00:02:22]} 23. Rb3 {[%clk 00:10:39]} {[%emt 00:00:06]} Qa5
{[%clk 00:01:14]} 24. Rbc3 {[%clk 00:10:12]} {[%emt 00:00:37]} b6 {[%clk
00:01:18]} {[%emt 00:00:07]} 25. Qg4 {[%clk 00:10:09]} {[%emt 00:00:12]} Nf6
{[%clk 00:00:24]} {[%emt 00:01:04]} 26. Qxg7 {[%clk 00:09:32]} {[%emt
00:00:47]} Bxf5 {[%clk 00:00:33]} {[%emt 00:00:01]} 27. Qg5 {[%clk 00:06:16]}
{[%emt 00:03:25]} Be6 {[%clk 00:00:32]} {[%emt 00:00:11]} 28. Qxe5 {[%clk
00:06:13]} {[%emt 00:00:13]} Rbd8 {[%clk 00:00:31]} {[%emt 00:00:12]} 29. Nf4
{[%clk 00:06:00]} {[%emt 00:00:23]} Rhg8 {[%clk 00:00:21]} {[%emt 00:00:20]} 30.
Nxe6 {[%emt 00:00:32]} fxe6 31. Bc4 {[%emt 00:00:19]} Rd6 32. Rf2 {[%clk
00:04:27]} {[%emt 00:01:12]} Nd7 {[%clk 00:00:27]} {[%emt 00:00:24]} 33. Rf7+
{[%clk 00:01:27]} {[%emt 00:03:10]} Kxf7 {[%clk 00:00:36]} {[%emt 00:00:02]} 34.
Qxd6 {[%clk 00:01:35]} {[%emt 00:00:01]} Qxc3 {[%clk 00:00:45]} {[%emt
00:00:01]} 35. Qxe6+ {[%clk 00:01:41]} {[%emt 00:00:04]} Kg7 {[%clk 00:00:47]}
{[%emt 00:00:08]} 36. Qxg8+ {[%clk 00:01:49]} {[%emt 00:00:02]} Kh6 {[%clk
00:00:47]} {[%emt 00:00:10]} 37. Qe6+ {[%clk 00:01:37]} {[%emt 00:00:21]} Kg5
{[%clk 00:00:38]} {[%emt 00:00:19]} 38. Qg4+ {[%clk 00:01:28]} {[%emt
00:00:19]} Kf6 {[%clk 00:00:39]} {[%emt 00:00:09]} 39. Qxh4+ {[%clk 00:01:23]}
{[%emt 00:00:16]} Ke5 {[%clk 00:00:37]} {[%emt 00:00:12]} 40. Qh8+ {[%clk
00:01:31]} {[%emt 00:00:02]} Nf6 {[%clk 00:00:47]} 41. Bxa6 {[%clk 00:00:38]}
{[%emt 00:01:03]} Qa1+ {[%clk 00:00:38]} {[%emt 00:00:19]} 42. Kh2 {[%clk
00:00:46]} {[%emt 00:00:02]} Qxa2 {[%clk 00:00:47]} {[%emt 00:00:02]} 43. Qb8+
{[%clk 00:00:52]} {[%emt 00:00:03]} Kxe4 {[%clk 00:00:51]} {[%emt 00:00:06]} 44.
Qxb6 {[%clk 00:00:59]} {[%emt 00:00:03]} Qf2 {[%clk 00:00:25]} {[%emt
00:00:37]} 45. Bb7+ {[%clk 00:01:03]} {[%emt 00:00:06]} Kd4 {[%clk 00:00:20]}
{[%emt 00:00:14]} 46. Qd6+ {[%clk 00:01:11]} {[%emt 00:00:02]} Kc4 {[%clk
00:00:22]} {[%emt 00:00:08]} 47. Qa6+ {[%clk 00:01:19]} {[%emt 00:00:03]} Kd4
{[%clk 00:00:28]} {[%emt 00:00:04]} 48. Qa4+ {[%clk 00:01:11]} {[%emt
00:00:18]} Ke5 {[%clk 00:00:27]} {[%emt 00:00:10]} 49. Qa1+ {[%clk 00:01:11]}
{[%emt 00:00:10]} Kd6 {[%clk 00:00:27]} {[%emt 00:00:11]} 50. Qa6+ {[%clk
00:01:14]} {[%emt 00:00:08]} Ke5 {[%clk 00:00:36]} {[%emt 00:00:01]} 51. Qa1+
{[%clk 00:01:02]} {[%emt 00:00:22]} Kd6 {[%clk 00:00:43]} {[%emt 00:00:02]} 52.
Bf3 {[%clk 00:01:07]} {[%emt 00:00:05]} Qh4 {[%clk 00:00:14]} {[%emt 00:00:39]}
53. Qa6+ {[%clk 00:01:05]} {[%emt 00:00:13]} Ke5 {[%clk 00:00:23]} 54. Qe2+
{[%clk 00:01:13]} Kd6 {[%clk 00:00:32]} {[%emt 00:00:01]} 55. Qd2+ {[%clk
00:00:41]} {[%emt 00:00:43]} Ke6 {[%clk 00:00:39]} {[%emt 00:00:02]} 56. Qe3+
{[%clk 00:00:43]} {[%emt 00:00:08]} Kd6 {[%clk 00:00:48]} {[%emt 00:00:01]} 57.
Qd3+ {[%clk 00:00:49]} {[%emt 00:00:04]} Ke5 {[%clk 00:00:46]} {[%emt
00:00:12]} 58. Qc3+ {[%clk 00:00:42]} {[%emt 00:00:17]} Kd6 {[%clk 00:00:56]}
{[%emt 00:00:01]} 59. Qd2+ {[%clk 00:00:29]} {[%emt 00:00:23]} Ke5 {[%clk
00:01:03]} {[%emt 00:00:02]} 60. g3 {[%clk 00:00:35]} {[%emt 00:00:05]} Qd4
{[%clk 00:01:03]} {[%emt 00:00:10]} 61. Qe2+ {[%clk 00:00:20]} {[%emt
00:00:25]} 1/2-1/2

[Event "SELL Games"]
[Site "Tartu, Estonia"]
[Date "2023.05.20"]
[Round "7.8"]
[White "Galdikaite, Greta"]
[Black "Mikelsons, Mikelis-Emils"]
[Result "0-1"]
[TimeControl "15min + 10sec per move each"]
[WhiteFideId "12819956"]
[BlackFideId "11607475"]
[WhiteElo "1195"]
[BlackElo "1877"]

1. e4 {[%clk 00:15:19]} e5 {[%clk 00:15:20]} {[%emt 00:00:30]} 2. Nf3 {[%clk
00:15:27]} Nc6 {[%clk 00:15:29]} {[%emt 00:00:02]} 3. Bb5 {[%clk 00:15:36]}
{[%emt 00:00:01]} f5 {[%clk 00:15:38]} {[%emt 00:00:01]} 4. d3 {[%clk
00:15:04]} {[%emt 00:00:41]} fxe4 {[%clk 00:15:46]} {[%emt 00:00:02]} 5. dxe4
{[%clk 00:15:12]} {[%emt 00:00:02]} Nf6 {[%emt 00:00:01]} 6. Nc3 Bb4 7. O-O
Bxc3 8. bxc3 d6 9. Re1 O-O 10. Bc4+ Kh8 {[%clk 00:15:55]} 11. h3 {[%clk
00:14:06]} {[%emt 19:01:25]} Nh5 {[%clk 00:16:08]} 12. Ng5 {[%clk 00:13:44]}
{[%emt 00:00:54]} Qe8 {[%clk 00:16:16]} 13. Qd5 {[%clk 00:12:24]} {[%emt
00:01:32]} Nd8 {[%clk 00:16:06]} 14. Be3 {[%clk 00:06:45]} {[%emt 00:06:09]} h6
{[%clk 00:12:19]} {[%emt 00:03:57]} 15. Nf3 {[%clk 00:04:57]} {[%emt 00:01:58]}
Rxf3 {[%clk 00:12:27]} {[%emt 00:00:02]} 16. gxf3 {[%clk 00:04:54]} {[%emt
00:00:13]} Bxh3 {[%clk 00:10:47]} {[%emt 00:01:50]} 17. Kh2 {[%clk 00:04:10]}
{[%emt 00:00:54]} Ne6 {[%clk 00:10:54]} {[%emt 00:00:03]} 18. Qd2 {[%clk
00:03:50]} {[%emt 00:00:31]} Nhf4 {[%clk 00:10:55]} {[%emt 00:00:09]} 19. Bxe6
{[%clk 00:02:43]} {[%emt 00:01:17]} Qh5 {[%clk 00:04:30]} {[%emt 00:06:34]} 20.
Bxf4 {[%clk 00:02:14]} {[%emt 00:00:39]} Bxe6+ {[%clk 00:04:38]} {[%emt
00:00:02]} 21. Kg1 {[%clk 00:01:43]} {[%emt 00:00:42]} Bh3 {[%clk 00:01:54]}
{[%emt 00:02:54]} 22. Qe2 {[%clk 00:00:34]} {[%emt 00:01:19]} exf4 {[%clk
00:01:53]} {[%emt 00:00:10]} 23. Kh2 {[%emt 00:00:35]} 0-1

[Event "SELL Games"]
[Site "Tartu, Estonia"]
[Date "2023.05.20"]
[Round "8.1"]
[White "Stauskas, Lukas"]
[Black "Vaskevicius, Augustas"]
[Result "1-0"]
[TimeControl "15min + 10sec per move each"]
[WhiteFideId "12808148"]
[BlackFideId "12808008"]
[WhiteElo "2296"]
[BlackElo "1904"]

1. d4 {[%clk 00:15:18]} {[%emt 00:00:02]} d5 {[%clk 00:15:14]} {[%emt
00:00:06]} 2. Nf3 {[%clk 00:15:26]} {[%emt 00:00:01]} Nf6 {[%clk 00:15:18]}
{[%emt 00:00:06]} 3. c4 {[%clk 00:15:35]} {[%emt 00:00:01]} dxc4 {[%clk
00:15:21]} {[%emt 00:00:07]} 4. Nc3 {[%clk 00:15:44]} a6 {[%clk 00:15:17]}
{[%emt 00:00:15]} 5. e4 {[%clk 00:15:53]} {[%emt 00:00:01]} e6 {[%clk
00:14:23]} {[%emt 00:01:05]} 6. Bxc4 {[%clk 00:15:17]} {[%emt 00:00:45]} b5
{[%clk 00:14:20]} {[%emt 00:00:13]} 7. Bd3 {[%clk 00:15:22]} {[%emt 00:00:05]}
Be7 {[%clk 00:14:09]} {[%emt 00:00:21]} 8. O-O {[%clk 00:15:09]} {[%emt
00:00:23]} Bb7 {[%clk 00:13:15]} {[%emt 00:01:04]} 9. Qe2 {[%clk 00:15:14]}
{[%emt 00:00:04]} Nbd7 {[%clk 00:12:54]} {[%emt 00:00:31]} 10. Rd1 {[%clk
00:14:56]} {[%emt 00:00:28]} O-O {[%clk 00:10:46]} {[%emt 00:02:18]} 11. a3
{[%clk 00:14:08]} {[%emt 00:00:58]} Re8 {[%clk 00:07:04]} {[%emt 00:03:52]} 12.
h3 {[%clk 00:13:49]} {[%emt 00:00:28]} c5 {[%clk 00:04:26]} {[%emt 00:02:48]}
13. dxc5 {[%clk 00:12:22]} {[%emt 00:01:37]} Bxc5 {[%clk 00:04:26]} {[%emt
00:00:10]} 14. e5 {[%clk 00:10:24]} {[%emt 00:02:08]} Nd5 {[%clk 00:04:15]}
{[%emt 00:00:20]} 15. Ne4 {[%clk 00:10:25]} {[%emt 00:00:09]} Be7 {[%clk
00:04:07]} {[%emt 00:00:18]} 16. Neg5 {[%clk 00:08:56]} {[%emt 00:01:40]} Nf8
{[%clk 00:03:21]} {[%emt 00:00:57]} 17. Bb1 {[%clk 00:06:42]} {[%emt 00:02:24]}
Qb6 {[%clk 00:03:01]} {[%emt 00:00:30]} 18. h4 {[%clk 00:06:18]} {[%emt
00:00:33]} Red8 {[%clk 00:02:42]} {[%emt 00:00:30]} 19. h5 {[%clk 00:06:17]}
{[%emt 00:00:10]} Rac8 {[%clk 00:02:45]} {[%emt 00:00:07]} 20. h6 {[%clk
00:06:16]} {[%emt 00:00:11]} gxh6 {[%clk 00:01:36]} {[%emt 00:01:19]} 21. Ne4
{[%clk 00:06:07]} {[%emt 00:00:19]} Ng6 {[%clk 00:01:42]} {[%emt 00:00:04]} 22.
Bxh6 {[%clk 00:05:14]} {[%emt 00:01:02]} Ndf4 {[%clk 00:01:37]} {[%emt
00:00:15]} 23. Rxd8+ {[%clk 00:04:32]} {[%emt 00:00:52]} Qxd8 {[%clk 00:01:18]}
{[%emt 00:00:28]} 24. Bxf4 {[%clk 00:04:00]} {[%emt 00:00:42]} Nxf4 {[%clk
00:01:27]} {[%emt 00:00:02]} 25. Qe3 {[%clk 00:04:05]} {[%emt 00:00:05]} Qd1+
{[%clk 00:01:17]} {[%emt 00:00:20]} 26. Kh2 {[%clk 00:04:13]} {[%emt 00:00:01]}
Ng6 {[%clk 00:01:19]} {[%emt 00:00:07]} 27. Nf6+ {[%clk 00:03:42]} {[%emt
00:00:41]} Kg7 {[%clk 00:00:39]} {[%emt 00:00:51]} 28. Nh5+ {[%clk 00:03:00]}
{[%emt 00:00:52]} Kf8 {[%clk 00:00:32]} {[%emt 00:00:17]} 29. Qh6+ {[%clk
00:02:10]} {[%emt 00:01:00]} Ke8 {[%clk 00:00:41]} {[%emt 00:00:02]} 30. Ng7+
{[%clk 00:01:46]} {[%emt 00:00:34]} Kd7 {[%clk 00:00:41]} {[%emt 00:00:11]} 31.
Bxg6 {[%clk 00:01:51]} {[%emt 00:00:04]} Qxa1 {[%clk 00:00:44]} {[%emt
00:00:07]} 32. Bxf7 {[%clk 00:01:59]} {[%emt 00:00:02]} Rc1 {[%clk 00:00:39]}
{[%emt 00:00:15]} 33. Qxe6+ {[%clk 00:01:55]} {[%emt 00:00:14]} Kd8 {[%clk
00:00:47]} {[%emt 00:00:02]} 34. Qb6+ {[%clk 00:01:45]} {[%emt 00:00:21]} Kc8
{[%clk 00:00:48]} {[%emt 00:00:09]} 35. Be6+ {[%clk 00:01:45]} {[%emt
00:00:10]} Kb8 {[%clk 00:00:57]} {[%emt 00:00:01]} 36. Bd5 {[%clk 00:01:38]}
{[%emt 00:00:17]} Rc7 {[%clk 00:00:55]} {[%emt 00:00:13]} 37. Ne6 {[%clk
00:01:26]} {[%emt 00:00:21]} Rd7 {[%clk 00:01:00]} {[%emt 00:00:05]} 38. Bc6
{[%clk 00:01:29]} {[%emt 00:00:07]} Qd1 {[%clk 00:00:33]} {[%emt 00:00:37]} 39.
Bxd7 {[%clk 00:01:35]} {[%emt 00:00:04]} Qxd7 {[%clk 00:00:42]} {[%emt
00:00:02]} 40. Nc5 {[%clk 00:01:40]} {[%emt 00:00:04]} Bxc5 {[%clk 00:00:41]}
{[%emt 00:00:11]} 41. Qxc5 {[%clk 00:01:49]} Bxf3 {[%clk 00:00:40]} {[%emt
00:00:11]} 42. gxf3 {[%clk 00:01:54]} {[%emt 00:00:05]} Qf5 {[%clk 00:00:42]}
{[%emt 00:00:08]} 43. Qb6+ {[%clk 00:01:54]} {[%emt 00:00:10]} Kc8 {[%clk
00:00:51]} 44. Qxa6+ {[%clk 00:02:02]} {[%emt 00:00:04]} Kc7 {[%clk 00:01:00]}
{[%emt 00:00:01]} 45. Qf6 {[%clk 00:01:49]} {[%emt 00:00:22]} Qh5+ {[%clk
00:00:30]} {[%emt 00:00:40]} 46. Kg2 {[%clk 00:01:53]} {[%emt 00:00:05]} 1-0

[Event "SELL Games"]
[Site "Tartu, Estonia"]
[Date "2023.05.20"]
[Round "8.2"]
[White "Vardanyan, Aras"]
[Black "Vanagas, Tadas"]
[Result "1-0"]
[TimeControl "15min + 10sec per move each"]
[WhiteTitle "FM"]
[WhiteFideId "12808792"]
[BlackFideId "12805467"]
[WhiteElo "2255"]
[BlackElo "2225"]

1. e4 {[%clk 00:15:18]} {[%emt 00:00:01]} c5 {[%clk 00:15:18]} {[%emt
00:00:03]} 2. Nc3 {[%clk 00:15:27]} {[%emt 00:00:01]} d6 {[%clk 00:15:26]}
{[%emt 00:00:02]} 3. d4 {[%clk 00:15:34]} {[%emt 00:00:02]} cxd4 {[%clk
00:15:35]} {[%emt 00:00:02]} 4. Qxd4 {[%clk 00:15:43]} a6 {[%clk 00:15:42]}
{[%emt 00:00:03]} 5. b3 {[%clk 00:15:52]} {[%emt 00:00:02]} Nc6 {[%clk
00:15:50]} {[%emt 00:00:01]} 6. Qd2 {[%clk 00:16:01]} {[%emt 00:00:01]} Nf6
{[%clk 00:15:58]} {[%emt 00:00:01]} 7. Bb2 {[%clk 00:16:10]} e6 {[%clk
00:16:06]} {[%emt 00:00:02]} 8. O-O-O {[%clk 00:16:17]} {[%emt 00:00:04]} Be7
{[%clk 00:16:15]} 9. f4 {[%clk 00:16:25]} {[%emt 00:00:03]} b5 {[%clk
00:16:09]} {[%emt 00:00:16]} 10. Bd3 {[%clk 00:16:31]} {[%emt 00:00:04]} Qc7
{[%clk 00:15:22]} {[%emt 00:00:57]} 11. Nf3 {[%clk 00:16:37]} {[%emt 00:00:04]}
b4 {[%clk 00:13:34]} {[%emt 00:01:59]} 12. Na4 {[%clk 00:16:41]} {[%emt
00:00:05]} e5 {[%clk 00:12:04]} {[%emt 00:01:39]} 13. Kb1 {[%clk 00:16:31]}
{[%emt 00:00:20]} O-O {[%clk 00:11:52]} {[%emt 00:00:22]} 14. f5 {[%clk
00:14:38]} {[%emt 00:02:03]} Bd7 {[%clk 00:09:11]} {[%emt 00:02:51]} 15. g4
{[%clk 00:14:42]} {[%emt 00:00:06]} d5 {[%clk 00:06:46]} {[%emt 00:02:35]} 16.
exd5 {[%clk 00:13:54]} {[%emt 00:00:57]} e4 {[%clk 00:06:29]} {[%emt 00:00:27]}
17. g5 {[%clk 00:12:55]} {[%emt 00:01:09]} e3 {[%clk 00:04:33]} {[%emt
00:02:06]} 18. Qxe3 {[%clk 00:12:45]} {[%emt 00:00:20]} Nxd5 {[%clk 00:04:42]}
19. Qe4 {[%clk 00:12:40]} {[%emt 00:00:14]} Nf4 {[%clk 00:02:29]} {[%emt
00:02:23]} 20. f6 {[%clk 00:12:46]} {[%emt 00:00:04]} 1-0

[Event "SELL Games"]
[Site "Tartu, Estonia"]
[Date "2023.05.20"]
[Round "8.3"]
[White "Sirp, Karl Aleksander"]
[Black "Tvarijonas, Tomas"]
[Result "1/2-1/2"]
[TimeControl "15min + 10sec per move each"]
[BlackTitle "FM"]
[WhiteFideId "4504712"]
[BlackFideId "12805432"]
[WhiteElo "2033"]
[BlackElo "2181"]

1. d4 {[%clk 00:15:18]} d5 {[%clk 00:15:20]} {[%emt 00:00:02]} 2. Bf4 {[%clk
00:15:27]} {[%emt 00:00:01]} Nf6 {[%clk 00:15:28]} {[%emt 00:00:01]} 3. Nf3
{[%clk 00:15:35]} {[%emt 00:00:01]} Bf5 {[%clk 00:15:28]} {[%emt 00:00:10]} 4.
e3 {[%clk 00:15:42]} {[%emt 00:00:03]} e6 {[%clk 00:15:36]} {[%emt 00:00:03]} 5.
c4 {[%clk 00:15:40]} {[%emt 00:00:12]} c6 {[%clk 00:15:30]} {[%emt 00:00:16]} 6.
Qb3 {[%clk 00:15:47]} {[%emt 00:00:03]} Qc8 {[%clk 00:15:12]} {[%emt 00:00:28]}
7. Nc3 {[%clk 00:15:49]} {[%emt 00:00:08]} Be7 {[%clk 00:15:01]} {[%emt
00:00:21]} 8. Be2 {[%clk 00:15:24]} {[%emt 00:00:36]} O-O {[%clk 00:15:06]}
{[%emt 00:00:05]} 9. Ne5 {[%clk 00:15:29]} {[%emt 00:00:04]} dxc4 {[%clk
00:14:13]} {[%emt 00:01:03]} 10. Nxc4 {[%clk 00:15:17]} {[%emt 00:00:22]} Rd8
{[%clk 00:13:16]} {[%emt 00:01:08]} 11. Bf3 {[%clk 00:14:32]} {[%emt 00:00:54]}
Na6 {[%clk 00:12:07]} {[%emt 00:01:19]} 12. O-O {[%clk 00:13:36]} {[%emt
00:01:06]} Nb4 {[%clk 00:11:21]} {[%emt 00:00:56]} 13. e4 {[%clk 00:12:37]}
{[%emt 00:01:09]} Bg6 {[%clk 00:10:31]} {[%emt 00:01:01]} 14. Rfd1 {[%clk
00:12:11]} {[%emt 00:00:36]} b5 {[%clk 00:09:43]} {[%emt 00:00:58]} 15. Ne5
{[%clk 00:12:05]} {[%emt 00:00:16]} a5 {[%clk 00:08:51]} {[%emt 00:01:03]} 16.
a4 {[%clk 00:11:57]} {[%emt 00:00:17]} Qb7 {[%clk 00:08:10]} {[%emt 00:00:51]}
17. Nxg6 {[%clk 00:09:11]} {[%emt 00:02:56]} hxg6 {[%clk 00:08:17]} {[%emt
00:00:03]} 18. d5 {[%clk 00:09:09]} {[%emt 00:00:12]} bxa4 {[%clk 00:07:13]}
{[%emt 00:01:14]} 19. Rxa4 {[%clk 00:08:59]} {[%emt 00:00:20]} cxd5 {[%clk
00:06:24]} {[%emt 00:00:59]} 20. exd5 {[%clk 00:08:57]} {[%emt 00:00:12]} exd5
{[%clk 00:06:05]} {[%emt 00:00:29]} 21. h3 {[%clk 00:08:05]} {[%emt 00:01:01]}
Qb6 {[%clk 00:05:28]} {[%emt 00:00:48]} 22. Be5 {[%clk 00:06:00]} {[%emt
00:02:15]} Bc5 {[%clk 00:04:49]} {[%emt 00:00:49]} 23. Rd2 {[%clk 00:04:49]}
{[%emt 00:01:22]} Qe6 {[%clk 00:04:10]} {[%emt 00:00:47]} 24. Re2 {[%clk
00:04:19]} {[%emt 00:00:41]} Qf5 {[%clk 00:03:55]} {[%emt 00:00:25]} 25. Ra1
{[%clk 00:03:31]} {[%emt 00:00:58]} Re8 {[%clk 00:03:38]} {[%emt 00:00:27]} 26.
Nxd5 {[%clk 00:03:00]} {[%emt 00:00:42]} Nfxd5 {[%clk 00:02:01]} {[%emt
00:01:47]} 27. Bxd5 {[%clk 00:02:58]} {[%emt 00:00:12]} Rad8 {[%clk 00:01:48]}
{[%emt 00:00:23]} 28. g4 {[%clk 00:02:07]} {[%emt 00:01:00]} Qd7 {[%clk
00:01:50]} {[%emt 00:00:07]} 29. Bc4 {[%clk 00:01:57]} {[%emt 00:00:21]} Qa7
{[%clk 00:01:34]} {[%emt 00:00:26]} 30. Rf1 {[%clk 00:01:46]} {[%emt 00:00:21]}
Re7 {[%clk 00:01:37]} {[%emt 00:00:08]} 31. Bg3 {[%clk 00:01:35]} {[%emt
00:00:21]} Rxe2 {[%clk 00:01:29]} {[%emt 00:00:18]} 32. Bxe2 {[%clk 00:01:43]}
a4 {[%clk 00:01:18]} {[%emt 00:00:21]} 33. Qc4 {[%clk 00:01:39]} {[%emt
00:00:15]} Rd4 {[%clk 00:01:21]} {[%emt 00:00:07]} 34. Qb5 {[%clk 00:01:48]}
{[%emt 00:00:01]} Qb6 {[%clk 00:00:35]} {[%emt 00:00:57]} 35. Qe8+ {[%clk
00:01:45]} {[%emt 00:00:12]} Bf8 {[%clk 00:00:43]} {[%emt 00:00:01]} 36. Rc1
{[%clk 00:01:07]} {[%emt 00:00:48]} Qd8 {[%clk 00:00:30]} {[%emt 00:00:23]} 37.
Qxa4 {[%clk 00:00:56]} {[%emt 00:00:21]} Nd3 {[%clk 00:00:34]} {[%emt
00:00:06]} 38. Rc8 {[%clk 00:00:46]} {[%emt 00:00:20]} Qxc8 {[%clk 00:00:13]}
{[%emt 00:00:31]} 39. Qxd4 {[%clk 00:00:54]} {[%emt 00:00:02]} Nc5 {[%clk
00:00:19]} {[%emt 00:00:04]} 40. Bc4 {[%clk 00:00:49]} {[%emt 00:00:15]} Qb7
{[%clk 00:00:18]} {[%emt 00:00:11]} 41. Qd5 {[%clk 00:00:52]} {[%emt 00:00:07]}
Qe7 {[%clk 00:00:21]} {[%emt 00:00:07]} 42. b4 {[%clk 00:00:44]} {[%emt
00:00:18]} Ne4 {[%clk 00:00:30]} 43. Bf4 {[%clk 00:00:36]} {[%emt 00:00:18]}
Nf6 {[%clk 00:00:38]} {[%emt 00:00:03]} 44. Qb5 {[%clk 00:00:12]} {[%emt
00:00:33]} Qe1+ {[%clk 00:00:45]} {[%emt 00:00:03]} 45. Bf1 {[%clk 00:00:14]}
{[%emt 00:00:09]} Bxb4 {[%clk 00:00:41]} {[%emt 00:00:14]} 46. Qe2 {[%clk
00:00:23]} Qc3 {[%clk 00:00:43]} {[%emt 00:00:08]} 47. Bg5 {[%clk 00:00:24]}
{[%emt 00:00:09]} Qc6 {[%clk 00:00:34]} {[%emt 00:00:18]} 48. Bg2 {[%clk
00:00:30]} {[%emt 00:00:05]} Qd6 {[%clk 00:00:40]} {[%emt 00:00:04]} 49. Bxf6
{[%clk 00:00:20]} {[%emt 00:00:20]} gxf6 {[%clk 00:00:47]} {[%emt 00:00:03]} 50.
Bf3 {[%clk 00:00:14]} {[%emt 00:00:15]} Bc5 {[%clk 00:00:56]} {[%emt 00:00:02]}
51. Kg2 {[%clk 00:00:23]} {[%emt 00:00:01]} Kg7 {[%clk 00:01:05]} 52. Be4
{[%clk 00:00:26]} {[%emt 00:00:07]} Qf4 {[%clk 00:01:13]} {[%emt 00:00:02]} 53.
Qf3 {[%clk 00:00:34]} {[%emt 00:00:02]} Qd2 {[%clk 00:01:19]} {[%emt 00:00:04]}
54. Bd5 {[%clk 00:00:34]} {[%emt 00:00:11]} Bxf2 {[%clk 00:01:20]} {[%emt
00:00:09]} 55. Qxf2 {[%clk 00:00:36]} {[%emt 00:00:07]} Qxd5+ {[%clk 00:01:29]}
{[%emt 00:00:01]} 56. Kg3 {[%clk 00:00:43]} {[%emt 00:00:04]} Qe5+ {[%clk
00:01:36]} {[%emt 00:00:02]} 57. Kg2 {[%clk 00:00:51]} {[%emt 00:00:02]} Qe4+
{[%clk 00:01:37]} {[%emt 00:00:09]} 58. Kg3 {[%clk 00:00:57]} {[%emt 00:00:04]}
g5 {[%clk 00:01:30]} {[%emt 00:00:16]} 59. Qa2 {[%clk 00:00:30]} {[%emt
00:00:38]} Kg6 {[%clk 00:01:30]} {[%emt 00:00:11]} 60. Qa6 {[%clk 00:00:25]}
{[%emt 00:00:14]} Qe1+ {[%clk 00:01:33]} {[%emt 00:00:06]} 61. Kg2 {[%clk
00:00:33]} {[%emt 00:00:02]} Qe3 {[%clk 00:01:38]} {[%emt 00:00:05]} 62. Qc8
{[%clk 00:00:23]} {[%emt 00:00:19]} Kg7 {[%clk 00:01:40]} {[%emt 00:00:10]} 63.
Qa8 {[%clk 00:00:30]} {[%emt 00:00:02]} Qd2+ {[%clk 00:01:36]} {[%emt
00:00:15]} 64. Kg3 {[%clk 00:00:38]} {[%emt 00:00:02]} f5 {[%clk 00:01:35]}
{[%emt 00:00:11]} 65. Qa1+ {[%clk 00:00:35]} {[%emt 00:00:13]} Kg6 {[%clk
00:01:29]} {[%emt 00:00:16]} 66. Qa6+ {[%clk 00:00:32]} {[%emt 00:00:12]} f6
{[%clk 00:01:32]} {[%emt 00:00:08]} 67. gxf5+ {[%clk 00:00:40]} {[%emt
00:00:02]} Kxf5 {[%clk 00:01:33]} {[%emt 00:00:09]} 68. Qc8+ {[%clk 00:00:49]}
Ke5 {[%clk 00:01:17]} {[%emt 00:00:26]} 69. Qe8+ {[%clk 00:00:53]} {[%emt
00:00:05]} Kf5 {[%clk 00:01:15]} {[%emt 00:00:12]} 70. Qc8+ {[%clk 00:01:02]}
Kg6 {[%clk 00:01:07]} {[%emt 00:00:17]} 71. Qg8+ {[%clk 00:01:03]} {[%emt
00:00:10]} Kh6 {[%clk 00:01:15]} {[%emt 00:00:02]} 72. Qh8+ {[%clk 00:01:05]}
{[%emt 00:00:08]} Kg6 {[%clk 00:01:13]} {[%emt 00:00:12]} 73. Qg8+ {[%clk
00:01:13]} {[%emt 00:00:01]} Kf5 {[%clk 00:01:08]} {[%emt 00:00:16]} 74. Qc8+
{[%clk 00:01:21]} {[%emt 00:00:01]} Ke5 {[%clk 00:00:55]} {[%emt 00:00:23]} 75.
Qe8+ {[%clk 00:01:21]} {[%emt 00:00:09]} Kf5 {[%clk 00:00:42]} {[%emt
00:00:24]} 1/2-1/2